fUST/lending_fUST_20260607
["ID","MTS","AMOUNT","RATE_DAILY","PERIOD"]
[424376293,1780819831000,-366.38972134,0.0001,2]
[424376295,1780819831000,-500.0,0.00013698,2]
[424376300,1780819831000,-169.790678,0.00016187,2]
[424376297,1780819831000,-1000.0,0.00014282,2]
[424376299,1780819831000,-184.133912,0.00015354,2]
[424376304,1780819831000,-5274.28514511,0.00016643,2]
[424376373,1780819838000,-500.0,0.0001863,2]
[424376371,1780819838000,-500.0,0.0001863,2]
[424376369,1780819838000,-500.0,0.0001863,2]
[424376372,1780819838000,-500.0,0.0001863,2]
[424376370,1780819838000,-500.0,0.0001863,2]
[424376368,1780819838000,-500.0,0.0001863,2]
[424376365,1780819838000,-500.0,0.0001863,2]
[424376364,1780819838000,-500.0,0.0001863,2]
[424376367,1780819838000,-354.15019535,0.0001863,2]
[424376366,1780819838000,-500.0,0.0001863,2]
[424376363,1780819838000,-500.0,0.0001863,2]
[424376361,1780819838000,-182.34022304,0.0001863,2]
[424376375,1780819838000,-547.2779755,0.0001863,2]
[424376384,1780819838000,-500.0,0.00018904,2]
[424376379,1780819838000,-213.099474,0.00018661,2]
[424376381,1780819838000,-3426.07257924,0.00018865,7]
[424376378,1780819838000,-500.0,0.0001863,2]
[424376376,1780819838000,-151.5,0.0001863,2]
[424376374,1780819838000,-248.16370301,0.0001863,2]
[424376380,1780819838000,-1522.69892411,0.00018735,7]
[424376382,1780819838000,-741.1054839,0.00018865,7]
[424376383,1780819838000,-186.9959698,0.000189,2]
[424376386,1780819838000,-500.0,0.00018904,2]
[424376385,1780819838000,-500.0,0.00018904,2]
[424376387,1780819838000,-500.0,0.00018904,2]
[424376393,1780819838000,-2773.85058938,0.00019,2]
[424376360,1780819838000,-466.60098784,0.0001863,2]
[424376388,1780819838000,-500.0,0.00018904,2]
[424376377,1780819838000,-861.53,0.0001863,2]
[424376362,1780819838000,-500.0,0.0001863,2]
[424376345,1780819838000,-500.0,0.0001863,2]
[424376354,1780819838000,-500.0,0.0001863,2]
[424376389,1780819838000,-500.0,0.00018904,2]
[424376331,1780819838000,-19049.83270459,0.00016643,2]
[424376329,1780819838000,-5000.0,9.136e-05,2]
[424376333,1780819838000,-202.108,0.00017843,2]
[424376336,1780819838000,-152.0,0.00018411,7]
[424376337,1780819838000,-1096.35936726,0.00018442,2]
[424376338,1780819838000,-214.62849882,0.00018468,2]
[424376332,1780819838000,-1096.3593673,0.00017743,2]
[424376335,1780819838000,-175.512189,0.00018383,2]
[424376334,1780819838000,-505.74204017,0.00018318,2]
[424376339,1780819838000,-198.09217143,0.00018468,2]
[424376341,1780819838000,-153.53655168,0.00018474,2]
[424376342,1780819838000,-260.14931318,0.0001851,7]
[424376359,1780819838000,-151.5,0.0001863,2]
[424376343,1780819838000,-380.67473103,0.00018606,7]
[424376344,1780819838000,-185.27637098,0.00018606,7]
[424376346,1780819838000,-500.0,0.0001863,2]
[424376351,1780819838000,-500.0,0.0001863,2]
[424376352,1780819838000,-500.0,0.0001863,2]
[424376353,1780819838000,-500.0,0.0001863,2]
[424376349,1780819838000,-500.0,0.0001863,2]
[424376347,1780819838000,-500.0,0.0001863,2]
[424376348,1780819838000,-351.07156641,0.0001863,2]
[424376350,1780819838000,-500.0,0.0001863,2]
[424376355,1780819838000,-151.5,0.0001863,2]
[424376356,1780819838000,-315.72705471,0.0001863,2]
[424376357,1780819838000,-500.0,0.0001863,2]
[424376358,1780819838000,-151.5,0.0001863,2]
[424376340,1780819838000,-161.85533582,0.00018468,2]
[424376390,1780819838000,-178.624404,0.00018904,2]
[424376412,1780819838000,-500.0,0.00019178,2]
[424376392,1780819838000,-861.53,0.00018904,2]
[424376429,1780819838000,-500.0,0.00019178,2]
[424376427,1780819838000,-500.0,0.00019178,2]
[424376428,1780819838000,-500.0,0.00019178,2]
[424376431,1780819838000,-1026.66,0.00019178,2]
[424376432,1780819838000,-583.86136659,0.00019178,2]
[424376433,1780819838000,-500.0,0.00019178,2]
[424376430,1780819838000,-500.0,0.00019178,2]
[424376438,1780819838000,-540.51,0.00019178,2]
[424376434,1780819838000,-205.91042269,0.00019178,2]
[424376436,1780819838000,-1853.19380422,0.00019178,2]
[424376443,1780819838000,-151.0,0.00019178,2]
[424376439,1780819838000,-500.0,0.00019178,2]
[424376444,1780819838000,-161.636636,0.00019178,2]
[424376445,1780819838000,-500.0,0.00019178,2]
[424376437,1780819838000,-500.0,0.00019178,2]
[424376440,1780819838000,-500.0,0.00019178,2]
[424376446,1780819838000,-703.05765772,0.00019178,2]
[424376435,1780819838000,-823.64169077,0.00019178,2]
[424376441,1780819838000,-500.0,0.00019178,2]
[424376442,1780819838000,-151.0,0.00019178,2]
[424376447,1780819838000,-773.44,0.00019178,2]
[424376450,1780819838000,-500.0,0.00019178,2]
[424376454,1780819838000,-500.0,0.00019178,2]
[424376455,1780819838000,-884.25,0.00019178,2]
[424376449,1780819838000,-944.98,0.00019178,2]
[424376452,1780819838000,-500.0,0.00019178,2]
[424376448,1780819838000,-500.0,0.00019178,2]
[424376453,1780819838000,-2530.94,0.00019178,2]
[424376391,1780819838000,-167.654,0.00018904,2]
[424376426,1780819838000,-500.0,0.00019178,2]
[424376425,1780819838000,-500.0,0.00019178,2]
[424376451,1780819838000,-500.0,0.00019178,2]
[424376424,1780819838000,-500.0,0.00019178,2]
[424376423,1780819838000,-500.0,0.00019178,2]
[424376397,1780819838000,-500.0,0.00019177,2]
[424376396,1780819838000,-500.0,0.00019177,2]
[424376395,1780819838000,-1096.35936726,0.00019142,2]
[424376399,1780819838000,-500.0,0.00019177,2]
[424376398,1780819838000,-500.0,0.00019177,2]
[424376400,1780819838000,-500.0,0.00019177,2]
[424376406,1780819838000,-500.0,0.00019177,2]
[424376401,1780819838000,-500.0,0.00019177,2]
[424376405,1780819838000,-500.0,0.00019177,2]
[424376403,1780819838000,-500.0,0.00019177,2]
[424376404,1780819838000,-500.0,0.00019177,2]
[424376402,1780819838000,-500.0,0.00019177,2]
[424376407,1780819838000,-500.0,0.00019177,2]
[424376394,1780819838000,-1997.96388072,0.00019078,2]
[424376410,1780819838000,-500.0,0.00019178,2]
[424376409,1780819838000,-500.0,0.00019178,2]
[424376422,1780819838000,-1554.02,0.00019178,2]
[424376420,1780819838000,-500.0,0.00019178,2]
[424376421,1780819838000,-500.0,0.00019178,2]
[424376419,1780819838000,-987.7,0.00019178,2]
[424376417,1780819838000,-500.0,0.00019178,2]
[424376415,1780819838000,-500.0,0.00019178,2]
[424376414,1780819838000,-5813.60593086,0.00019178,2]
[424376416,1780819838000,-500.0,0.00019178,2]
[424376413,1780819838000,-17557.20538634,0.00019178,2]
[424376411,1780819838000,-500.0,0.00019178,2]
[424376408,1780819838000,-500.0,0.00019178,2]
[424376418,1780819838000,-1542.8812104,0.00019178,2]
[424376497,1780819839000,-532.26,0.00019178,2]
[424376500,1780819839000,-500.0,0.00019178,2]
[424376498,1780819839000,-678.22,0.00019178,2]
[424376496,1780819839000,-500.0,0.00019178,2]
[424376495,1780819839000,-500.0,0.00019178,2]
[424376489,1780819839000,-500.0,0.00019178,2]
[424376491,1780819839000,-500.0,0.00019178,2]
[424376492,1780819839000,-660.45,0.00019178,2]
[424376488,1780819839000,-1371.25,0.00019178,2]
[424376486,1780819839000,-500.0,0.00019178,2]
[424376490,1780819839000,-500.0,0.00019178,2]
[424376494,1780819839000,-500.0,0.00019178,2]
[424376502,1780819839000,-518.85766302,0.00019178,2]
[424376506,1780819839000,-500.0,0.00019178,2]
[424376501,1780819839000,-571.23314146,0.00019178,2]
[424376499,1780819839000,-1530.96,0.00019178,2]
[424376504,1780819839000,-500.0,0.00019178,2]
[424376507,1780819839000,-2806.71,0.00019178,2]
[424376505,1780819839000,-500.0,0.00019178,2]
[424376508,1780819839000,-500.0,0.00019178,2]
[424376509,1780819839000,-500.0,0.00019178,2]
[424376515,1780819839000,-1715.61,0.00019178,2]
[424376517,1780819839000,-500.0,0.00019178,2]
[424376510,1780819839000,-570.48684245,0.00019178,2]
[424376514,1780819839000,-500.0,0.00019178,2]
[424376512,1780819839000,-500.0,0.00019178,2]
[424376493,1780819839000,-500.0,0.00019178,2]
[424376516,1780819839000,-500.0,0.00019178,2]
[424376503,1780819839000,-500.0,0.00019178,2]
[424376487,1780819839000,-500.0,0.00019178,2]
[424376470,1780819839000,-399.00428915,0.00019178,2]
[424376483,1780819839000,-500.0,0.00019178,2]
[424376518,1780819839000,-500.0,0.00019178,2]
[424376456,1780819839000,-500.0,0.00019178,2]
[424376459,1780819839000,-729.8,0.00019178,2]
[424376457,1780819839000,-728.86,0.00019178,2]
[424376458,1780819839000,-731.84,0.00019178,2]
[424376460,1780819839000,-500.0,0.00019178,2]
[424376461,1780819839000,-500.0,0.00019178,2]
[424376463,1780819839000,-500.0,0.00019178,2]
[424376462,1780819839000,-500.0,0.00019178,2]
[424376464,1780819839000,-1468.47,0.00019178,2]
[424376465,1780819839000,-2759.14,0.00019178,2]
[424376466,1780819839000,-500.0,0.00019178,2]
[424376468,1780819839000,-1199.63,0.00019178,2]
[424376485,1780819839000,-500.0,0.00019178,2]
[424376467,1780819839000,-500.0,0.00019178,2]
[424376471,1780819839000,-500.0,0.00019178,2]
[424376472,1780819839000,-500.0,0.00019178,2]
[424376473,1780819839000,-500.0,0.00019178,2]
[424376475,1780819839000,-500.0,0.00019178,2]
[424376476,1780819839000,-500.0,0.00019178,2]
[424376474,1780819839000,-500.0,0.00019178,2]
[424376478,1780819839000,-500.0,0.00019178,2]
[424376479,1780819839000,-510.28927336,0.00019178,2]
[424376477,1780819839000,-2097.65,0.00019178,2]
[424376480,1780819839000,-534.72,0.00019178,2]
[424376481,1780819839000,-500.0,0.00019178,2]
[424376482,1780819839000,-1488.8,0.00019178,2]
[424376484,1780819839000,-732.48,0.00019178,2]
[424376469,1780819839000,-500.0,0.00019178,2]
[424376520,1780819839000,-500.0,0.00019178,2]
[424376513,1780819839000,-500.0,0.00019178,2]
[424376570,1780819839000,-674.4,0.00019178,2]
[424376554,1780819839000,-788.77,0.00019178,2]
[424376553,1780819839000,-2581.84,0.00019178,2]
[424376555,1780819839000,-500.0,0.00019178,2]
[424376556,1780819839000,-362.48442151,0.00019178,2]
[424376557,1780819839000,-500.0,0.00019178,2]
[424376562,1780819839000,-500.0,0.00019178,2]
[424376561,1780819839000,-858.38,0.00019178,2]
[424376558,1780819839000,-1504.62,0.00019178,2]
[424376560,1780819839000,-581.27,0.00019178,2]
[424376564,1780819839000,-435.81753768,0.00019178,2]
[424376563,1780819839000,-500.0,0.00019178,2]
[424376565,1780819839000,-630.05,0.00019178,2]
[424376566,1780819839000,-1440.94,0.00019178,2]
[424376567,1780819839000,-500.0,0.00019178,2]
[424376571,1780819839000,-500.0,0.00019178,2]
[424376569,1780819839000,-500.0,0.00019178,2]
[424376568,1780819839000,-840.42,0.00019178,2]
[424376573,1780819839000,-500.0,0.00019178,2]
[424376572,1780819839000,-500.0,0.00019178,2]
[424376574,1780819839000,-902.54,0.00019178,2]
[424376576,1780819839000,-1575.98,0.00019178,2]
[424376575,1780819839000,-1037.41,0.00019178,2]
[424376577,1780819839000,-500.0,0.00019178,2]
[424376581,1780819839000,-500.0,0.00019178,2]
[424376582,1780819839000,-575.91116652,0.00019178,2]
[424376580,1780819839000,-500.0,0.00019178,2]
[424376578,1780819839000,-500.0,0.00019178,2]
[424376511,1780819839000,-1906.24,0.00019178,2]
[424376579,1780819839000,-350.06327024,0.00019178,2]
[424376552,1780819839000,-1720.14,0.00019178,2]
[424376550,1780819839000,-544.21,0.00019178,2]
[424376559,1780819839000,-500.0,0.00019178,2]
[424376549,1780819839000,-632.87,0.00019178,2]
[424376519,1780819839000,-500.0,0.00019178,2]
[424376522,1780819839000,-500.0,0.00019178,2]
[424376521,1780819839000,-360.16376971,0.00019178,2]
[424376523,1780819839000,-560.56921131,0.00019178,2]
[424376525,1780819839000,-500.0,0.00019178,2]
[424376526,1780819839000,-500.38,0.00019178,2]
[424376528,1780819839000,-500.0,0.00019178,2]
[424376551,1780819839000,-500.0,0.00019178,2]
[424376524,1780819839000,-182.69797363,0.00019178,2]
[424376527,1780819839000,-500.0,0.00019178,2]
[424376530,1780819839000,-698.5,0.00019178,2]
[424376534,1780819839000,-500.0,0.00019178,2]
[424376531,1780819839000,-724.55,0.00019178,2]
[424376532,1780819839000,-153.920585,0.00019178,2]
[424376533,1780819839000,-500.0,0.00019178,2]
[424376529,1780819839000,-596.67822196,0.00019178,2]
[424376535,1780819839000,-500.0,0.00019178,2]
[424376545,1780819839000,-215.29522854,0.00019178,2]
[424376537,1780819839000,-1163.89,0.00019178,2]
[424376547,1780819839000,-3753.63,0.00019178,2]
[424376544,1780819839000,-508.46877615,0.00019178,2]
[424376546,1780819839000,-597.69,0.00019178,2]
[424376542,1780819839000,-968.36,0.00019178,2]
[424376541,1780819839000,-5248.39,0.00019178,2]
[424376548,1780819839000,-500.0,0.00019178,2]
[424376543,1780819839000,-500.0,0.00019178,2]
[424376540,1780819839000,-500.0,0.00019178,2]
[424376539,1780819839000,-2782.61,0.00019178,2]
[424376536,1780819839000,-500.0,0.00019178,2]
[424376538,1780819839000,-500.0,0.00019178,2]
[424376609,1780819840000,-1084.71,0.00019178,2]
[424376604,1780819840000,-500.0,0.00019178,2]
[424376606,1780819840000,-1124.78,0.00019178,2]
[424376610,1780819840000,-872.84,0.00019178,2]
[424376608,1780819840000,-1364.82,0.00019178,2]
[424376603,1780819840000,-500.0,0.00019178,2]
[424376607,1780819840000,-500.0,0.00019178,2]
[424376611,1780819840000,-500.0,0.00019178,2]
[424376615,1780819840000,-862.35,0.00019178,2]
[424376613,1780819840000,-500.0,0.00019178,2]
[424376614,1780819840000,-500.0,0.00019178,2]
[424376617,1780819840000,-500.0,0.00019178,2]
[424376616,1780819840000,-614.77,0.00019178,2]
[424376618,1780819840000,-615.51,0.00019178,2]
[424376622,1780819840000,-509.3,0.00019178,2]
[424376605,1780819840000,-500.0,0.00019178,2]
[424376619,1780819840000,-602.18,0.00019178,2]
[424376612,1780819840000,-500.0,0.00019178,2]
[424376602,1780819840000,-500.0,0.00019178,2]
[424376591,1780819840000,-1000.0,0.00019178,2]
[424376601,1780819840000,-500.0,0.00019178,2]
[424376620,1780819840000,-572.94,0.00019178,2]
[424376583,1780819840000,-2825.16,0.00019178,2]
[424376584,1780819840000,-610.1283811,0.00019178,2]
[424376586,1780819840000,-500.0,0.00019178,2]
[424376587,1780819840000,-569.33,0.00019178,2]
[424376585,1780819840000,-903.35,0.00019178,2]
[424376589,1780819840000,-500.0,0.00019178,2]
[424376588,1780819840000,-500.0,0.00019178,2]
[424376590,1780819840000,-792.41,0.00019178,2]
[424376592,1780819840000,-599.44,0.00019178,2]
[424376593,1780819840000,-534.17,0.00019178,2]
[424376595,1780819840000,-1156.35,0.00019178,2]
[424376594,1780819840000,-163.44145334,0.00019178,2]
[424376596,1780819840000,-500.0,0.00019178,2]
[424376597,1780819840000,-719.97,0.00019178,2]
[424376598,1780819840000,-500.0,0.00019178,2]
[424376599,1780819840000,-1786.84,0.00019178,2]
[424376600,1780819840000,-500.0,0.00019178,2]
[424376621,1780819840000,-3245.2,0.00019178,2]
[424376639,1780819840000,-676.42,0.00019178,2]
[424376623,1780819840000,-1796.63,0.00019178,2]
[424376648,1780819840000,-1042.31,0.00019178,2]
[424376646,1780819840000,-434.35492119,0.00019178,2]
[424376649,1780819840000,-2440.17,0.00019178,2]
[424376651,1780819840000,-500.0,0.00019178,2]
[424376650,1780819840000,-500.0,0.00019178,2]
[424376652,1780819840000,-3036.53,0.00019178,2]
[424376657,1780819840000,-7037.4,0.00019178,2]
[424376655,1780819840000,-499.67515182,0.00019178,2]
[424376645,1780819840000,-500.0,0.00019178,2]
[424376656,1780819840000,-500.0,0.00019178,2]
[424376660,1780819840000,-6451.1,0.00019178,2]
[424376624,1780819840000,-500.0,0.00019178,2]
[424376653,1780819840000,-500.0,0.00019178,2]
[424376661,1780819840000,-1031.55,0.00019178,2]
[424376658,1780819840000,-500.0,0.00019178,2]
[424376662,1780819840000,-841.64,0.00019178,2]
[424376663,1780819840000,-950.18,0.00019178,2]
[424376664,1780819840000,-186.6447693,0.00019178,2]
[424376654,1780819840000,-500.0,0.00019178,2]
[424376643,1780819840000,-3335.87423284,0.00019178,2]
[424376659,1780819840000,-1980.36,0.00019178,2]
[424376644,1780819840000,-300.0,0.00019178,2]
[424376647,1780819840000,-500.0,0.00019178,2]
[424376625,1780819840000,-808.98,0.00019178,2]
[424376629,1780819840000,-547.94,0.00019178,2]
[424376626,1780819840000,-924.08,0.00019178,2]
[424376631,1780819840000,-500.0,0.00019178,2]
[424376628,1780819840000,-500.0,0.00019178,2]
[424376630,1780819840000,-1093.71,0.00019178,2]
[424376632,1780819840000,-500.0,0.00019178,2]
[424376627,1780819840000,-500.0,0.00019178,2]
[424376634,1780819840000,-888.68,0.00019178,2]
[424376635,1780819840000,-500.0,0.00019178,2]
[424376637,1780819840000,-770.7,0.00019178,2]
[424376636,1780819840000,-624.35,0.00019178,2]
[424376638,1780819840000,-500.0,0.00019178,2]
[424376640,1780819840000,-500.0,0.00019178,2]
[424376641,1780819840000,-11090.17080053,0.00019178,2]
[424376633,1780819840000,-156.883016,0.00019178,2]
[424376642,1780819840000,-398.97496663,0.00019178,2]
[424376702,1780819847000,-1005.79,0.00019178,2]
[424376704,1780819847000,-500.0,0.00019178,2]
[424376703,1780819847000,-500.0,0.00019178,2]
[424376705,1780819847000,-500.0,0.00019178,2]
[424376707,1780819847000,-500.0,0.00019178,2]
[424376706,1780819847000,-4986.95,0.00019178,2]
[424376709,1780819847000,-500.0,0.00019178,2]
[424376708,1780819847000,-729.66,0.00019178,2]
[424376711,1780819847000,-500.0,0.00019178,2]
[424376712,1780819847000,-500.0,0.00019178,2]
[424376700,1780819847000,-6014.88,0.00019178,2]
[424376701,1780819847000,-500.0,0.00019178,2]
[424376691,1780819847000,-500.0,0.00019178,2]
[424376699,1780819847000,-231.48164621,0.00019178,2]
[424376696,1780819847000,-500.0,0.00019178,2]
[424376695,1780819847000,-1011.73,0.00019178,2]
[424376692,1780819847000,-500.0,0.00019178,2]
[424376688,1780819847000,-971.9999996,0.00018986,2]
[424376689,1780819847000,-528.91,0.00019178,2]
[424376686,1780819847000,-152.0,0.00018514,7]
[424376698,1780819847000,-500.0,0.00019178,2]
[424376690,1780819847000,-3242.92,0.00019178,2]
[424376697,1780819847000,-854.21,0.00019178,2]
[424376693,1780819847000,-515.25,0.00019178,2]
[424376687,1780819847000,-4028.0000004,0.00018986,2]
[424376713,1780819847000,-500.0,0.00019178,2]
[424376694,1780819847000,-500.0,0.00019178,2]
[424376727,1780819847000,-185.25170931,0.00019178,2]
[424376752,1780819847000,-29171.95210272,0.00019178,2]
[424376718,1780819847000,-782.22752067,0.00019178,2]
[424376750,1780819847000,-2060.3243339,0.00019178,2]
[424376751,1780819847000,-424.17702131,0.00019178,2]
[424376747,1780819847000,-19567.42894494,0.00019178,2]
[424376726,1780819847000,-672.42,0.00019178,2]
[424376744,1780819847000,-7523.24321779,0.00019178,2]
[424376741,1780819847000,-500.0,0.00019178,2]
[424376742,1780819847000,-4844.01,0.00019178,2]
[424376740,1780819847000,-500.0,0.00019178,2]
[424376738,1780819847000,-500.0,0.00019178,2]
[424376734,1780819847000,-500.0,0.00019178,2]
[424376739,1780819847000,-500.0,0.00019178,2]
[424376736,1780819847000,-1112.59,0.00019178,2]
[424376737,1780819847000,-500.0,0.00019178,2]
[424376749,1780819847000,-498.19580677,0.00019178,2]
[424376732,1780819847000,-500.0,0.00019178,2]
[424376730,1780819847000,-1736.23,0.00019178,2]
[424376733,1780819847000,-500.0,0.00019178,2]
[424376731,1780819847000,-500.0,0.00019178,2]
[424376729,1780819847000,-500.0,0.00019178,2]
[424376722,1780819847000,-617.60504109,0.00019178,2]
[424376725,1780819847000,-500.0,0.00019178,2]
[424376724,1780819847000,-829.99495891,0.00019178,2]
[424376717,1780819847000,-986.44247933,0.00019178,2]
[424376715,1780819847000,-500.0,0.00019178,2]
[424376728,1780819847000,-314.74829069,0.00019178,2]
[424376720,1780819847000,-500.0,0.00019178,2]
[424376735,1780819847000,-629.79,0.00019178,2]
[424376770,1780820526000,591.163,7.6e-05,2]
[424376769,1780820526000,914.501,7.6e-05,2]
[424376771,1780820526000,591.163,7.6e-05,2]
[424376772,1780820526000,30000.0,7.6e-05,2]
[424376768,1780820526000,914.501,7.6e-05,2]
[424376774,1780820823000,-500.0,7.599e-05,2]
[424376775,1780820845000,-206.80057292,7.599e-05,2]
[424376778,1780820846000,-318.35645081,7.599e-05,2]
[424376776,1780820846000,-293.19942708,7.599e-05,2]
[424376777,1780820846000,-265.32432807,7.599e-05,2]
[424376779,1780820877000,-181.64354919,7.599e-05,2]
[424376783,1780820930000,-500.0,7.599e-05,2]
[424376784,1780820951000,-243.27900769,7.599e-05,2]
[424376785,1780820951000,-13110.51328377,7.6e-05,2]
[424376786,1780820954000,-78635.25826671,7.6e-05,2]
[424376787,1780820956000,-171284.02365177,7.6e-05,2]
[424376789,1780820956000,-5000.0,8e-05,2]
[424376788,1780820956000,-172.39408671,8e-05,2]
[424376790,1780820956000,-5000.0,8e-05,2]
[424376791,1780820956000,-1461.64575261,8e-05,2]
[424376793,1780820956000,-490.10608162,8.219e-05,2]
[424376795,1780820956000,-1461.64575255,9.966e-05,2]
[424376796,1780820956000,-1000.0,0.0001,2]
[424376797,1780820956000,-3461.08008326,0.0001,2]
[424376794,1780820956000,-720.77151083,8.6e-05,2]
[424376792,1780820956000,-571.63375139,8e-05,2]
[424376799,1780820967000,-8472.97364569,0.0001,2]
[424376798,1780820967000,-5000.0,9.9e-05,2]
[424376801,1780820967000,-1461.64575255,0.00012033,2]
[424376802,1780820967000,-9875.18906477,0.000125,2]
[424376803,1780820967000,-18123.17644587,0.000125,2]
[424376804,1780820967000,-86124.83665914,0.00013,2]
[424376800,1780820967000,-2773.8564183,0.00010959,2]
[424376806,1780821008000,181.3,5e-05,2]
[424376881,1780821032000,-974.60145506,0.00015,2]
[424376859,1780821032000,-1079.47980381,0.00012741,2]
[424376873,1780821032000,-1000.0,0.00013699,2]
[424376877,1780821032000,-1316.08513915,0.00014099,2]
[424376867,1780821032000,-1422.69942113,0.00012741,2]
[424376875,1780821032000,-145.5606134,0.00014099,2]
[424376869,1780821032000,-5000.0,0.0001287,2]
[424376871,1780821032000,-814.86771924,0.00013,2]
[424376885,1780821032000,-3302.260071,0.00015,2]
[424376883,1780821032000,-1891.462833,0.00015,2]
[424376887,1780821032000,-356.1667011,0.00015,2]
[424376879,1780821032000,-220.59484032,0.00014391,2]
[424376956,1780821038000,-746.66,0.0001863,2]
[424376963,1780821038000,-186.0,0.00018866,2]
[424376964,1780821038000,-746.66,0.00018904,2]
[424376957,1780821038000,-151.0,0.00018766,2]
[424376961,1780821038000,-444.0,0.00018866,2]
[424376966,1780821038000,-10318.4451857,0.00019157,2]
[424376965,1780821038000,-199.894715,0.0001907,2]
[424376967,1780821038000,-157.9965886,0.00019157,2]
[424376968,1780821038000,-5010.7712505,0.00019157,2]
[424376973,1780821038000,-500.0,0.00019178,2]
[424376969,1780821038000,-333.711854,0.00019157,2]
[424376974,1780821038000,-500.0,0.00019178,2]
[424376975,1780821038000,-3294.56676306,0.00019178,2]
[424376972,1780821038000,-333.711854,0.00019157,2]
[424376971,1780821038000,-333.711854,0.00019157,2]
[424376977,1780821038000,-500.0,0.00019178,2]
[424376976,1780821038000,-500.0,0.00019178,2]
[424376960,1780821038000,-2207.0,0.00018866,2]
[424376970,1780821038000,-333.711854,0.00019157,2]
[424376959,1780821038000,-3631.0,0.00018866,2]
[424376980,1780821038000,-500.0,0.00019178,2]
[424376962,1780821038000,-573.718,0.00018866,2]
[424376938,1780821038000,-343.07425713,0.00014999,2]
[424376940,1780821038000,-189.016352,0.00016156,2]
[424376951,1780821038000,-154.53330872,0.00018474,2]
[424376950,1780821038000,-1230.09117421,0.000184,2]
[424376952,1780821038000,-193.16564893,0.00018474,2]
[424376942,1780821038000,-333.711854,0.00016438,2]
[424376945,1780821038000,-6183.98613155,0.00017,2]
[424376947,1780821038000,-1039.1768457,0.0001789,2]
[424376958,1780821038000,-187.643,0.00018865,2]
[424376948,1780821038000,-151.0,0.00018218,2]
[424376941,1780821038000,-333.711854,0.00016438,2]
[424376939,1780821038000,-1499.93834383,0.00015,2]
[424376949,1780821038000,-1461.64575255,0.00018232,2]
[424376943,1780821038000,-333.711854,0.00016438,2]
[424376944,1780821038000,-333.711854,0.00016438,2]
[424376953,1780821038000,-178.28295429,0.00018474,2]
[424376955,1780821038000,-152.0,0.00018514,7]
[424376954,1780821038000,-152.0,0.00018514,7]
[424376946,1780821038000,-1415.0,0.00017378,2]
[424376979,1780821038000,-500.0,0.00019178,2]
[424377003,1780821038000,-500.0,0.00019178,2]
[424376981,1780821038000,-500.0,0.00019178,2]
[424377005,1780821038000,-500.0,0.00019178,2]
[424377006,1780821038000,-1115.39,0.00019178,2]
[424377022,1780821038000,-910.59,0.00019178,2]
[424377002,1780821038000,-521.53,0.00019178,2]
[424377004,1780821038000,-500.0,0.00019178,2]
[424377010,1780821038000,-818.62,0.00019178,2]
[424377012,1780821038000,-500.0,0.00019178,2]
[424377013,1780821038000,-500.0,0.00019178,2]
[424377000,1780821038000,-251.44079015,0.00019178,2]
[424377020,1780821038000,-500.0,0.00019178,2]
[424377014,1780821038000,-1380.9,0.00019178,2]
[424377015,1780821038000,-500.0,0.00019178,2]